bitfinex/quotes_BTCUSD_20220207
["timestamp","ask_amount","ask_price","bid_price","bid_amount"]
[1644199185381,0.00013348,42127.0,42126.0,0.66659463]
[1644199185585,0.00048003,42129.0,42128.0,0.059321]
[1644199185781,0.00048003,42129.0,42128.0,0.57107376]
[1644199186181,0.04291416,42134.0,42130.0,0.118642]
[1644199186382,0.04291416,42134.0,42131.0,0.38441818]
[1644199186583,0.02175409,42140.0,42131.0,0.44373818]
[1644199186783,0.02175409,42140.0,42137.0,0.059317]
[1644199186982,0.02175409,42140.0,42137.0,0.106817]
[1644199187582,0.02175409,42140.0,42138.0,0.21248205]
[1644199187783,0.04291416,42142.0,42139.0,0.30907643]
[1644199187983,0.04291416,42142.0,42139.0,0.0475]
[1644199188185,0.04291416,42142.0,42139.0,0.1475]
[1644199188436,0.05291416,42149.0,42142.0,0.059308]
[1644199188634,0.05291416,42149.0,42148.0,0.19841487]
[1644199189034,0.05291416,42149.0,42148.0,0.25300071]
[1644199189235,0.05291416,42149.0,42148.0,0.24591487]
[1644199189433,0.05291416,42149.0,42148.0,0.25300071]
[1644199189633,0.05291416,42149.0,42148.0,0.24591487]
[1644199190134,0.05291416,42149.0,42148.0,0.106797]
[1644199191435,0.05291416,42149.0,42146.0,0.02392099]
[1644199191636,0.05291416,42149.0,42147.0,0.0475]
[1644199192686,0.38551997,42149.0,42147.0,0.0475]
[1644199192885,0.43551997,42149.0,42147.0,0.0475]
[1644199193687,0.0593237,42146.0,42141.0,0.0475]
[1644199193889,0.43551997,42149.0,42130.0,0.37528584]
[1644199193890,0.13190385,42140.0,42132.0,0.05]
[1644199194088,0.13190385,42140.0,42132.0,0.15]
[1644199194288,0.13190385,42140.0,42132.0,0.05]
[1644199194289,0.21984319,42133.0,42132.0,0.05]
[1644199194490,0.04291416,42136.0,42132.0,0.05]
[1644199194688,0.04291416,42136.0,42133.0,0.26080694]
[1644199195088,0.00047883,42135.0,42133.0,0.26080694]
[1644199195929,0.04291416,42136.0,42133.0,0.26080694]
[1644199196132,0.04339299,42136.0,42133.0,0.26080694]
[1644199197128,0.04291416,42136.0,42133.0,0.26080694]
[1644199197328,0.26586017,42134.0,42133.0,0.26080694]
[1644199197732,0.26586017,42134.0,42129.0,0.11866]
[1644199197937,0.04291416,42130.0,42126.0,0.059341]
[1644199198130,0.25989761,42127.0,42124.0,0.00708584]
[1644199198529,0.04291416,42127.0,42124.0,0.00708584]
[1644199198733,0.04291416,42127.0,42124.0,0.19771008]
[1644199199130,0.04339297,42131.0,42124.0,0.19771008]
[1644199199585,0.00013322,42133.0,42124.0,0.19771008]
[1644199199788,0.00013322,42133.0,42125.0,0.0475]
[1644199199789,0.00047881,42131.0,42125.0,0.0475]
[1644199199986,0.00047881,42131.0,42126.0,0.33659715]
[1644199200186,0.00047881,42131.0,42124.0,0.19771008]
[1644199200187,0.00047881,42131.0,42127.0,0.0475]
[1644199200386,0.00047881,42131.0,42124.0,0.19771008]
[1644199200387,0.00047881,42131.0,42128.0,0.0475]
[1644199200588,0.00047881,42131.0,42129.0,0.0475]
[1644199200789,0.00013322,42133.0,42130.0,0.0475]
[1644199200989,0.00047883,42132.0,42130.0,0.0475]
[1644199202090,0.00013322,42133.0,42131.0,0.059334]
[1644199202292,0.00061205,42133.0,42131.0,0.11602015]
[1644199202490,0.00061205,42133.0,42131.0,0.106834]
[1644199202690,0.00061205,42133.0,42131.0,0.099234]
[1644199203090,0.00013322,42133.0,42131.0,0.41675825]
[1644199203334,0.00013322,42133.0,42132.0,0.118665]
[1644199203930,0.00013322,42133.0,42132.0,0.12785115]
[1644199204628,0.04339299,42135.0,42132.0,0.12785115]
[1644199205029,0.04339299,42135.0,42132.0,0.188665]
[1644199205430,0.04339299,42135.0,42132.0,0.07]
[1644199205431,0.2738372,42134.0,42132.0,0.07]
[1644199205832,0.3238372,42134.0,42132.0,0.07]
[1644199206128,0.3238372,42134.0,42127.0,8.357e-05]
[1644199206129,0.21848393,42130.0,42127.0,8.357e-05]
[1644199206327,0.21848393,42130.0,42128.0,0.059344]
[1644199206530,0.25499204,42129.0,42128.0,0.059344]
[1644199206730,0.26038831,42129.0,42128.0,0.059344]
[1644199206928,0.25709975,42129.0,42128.0,0.06853015]
[1644199207182,0.30001391,42129.0,42128.0,0.00918615]
[1644199209284,0.30001391,42129.0,42128.0,0.01952818]
[1644199209584,0.30001391,42129.0,42128.0,0.02987029]
[1644199209784,0.30001391,42129.0,42128.0,0.08921429]
[1644199209985,0.04291416,42129.0,42128.0,0.08921429]
[1644199210185,0.00037154,42131.0,42129.0,0.20870756]
[1644199210384,0.04291416,42132.0,42129.0,0.20870756]
[1644199210583,0.00037154,42131.0,42130.0,0.00918615]
[1644199210837,0.00037154,42131.0,42129.0,0.20870756]
[1644199211032,0.00037154,42131.0,42129.0,0.2157934]
[1644199211634,0.00013329,42134.0,42129.0,0.2157934]
[1644199211833,0.00037155,42132.0,42129.0,0.2157934]
[1644199212131,0.00037155,42132.0,42130.0,0.00918615]
[1644199212333,0.00037155,42132.0,42130.0,0.118669]
[1644199212733,0.00013329,42134.0,42130.0,0.118669]
[1644199212933,0.00013329,42134.0,42133.0,0.00708584]
[1644199213733,0.00013329,42134.0,42133.0,0.01627199]
[1644199214334,0.04344268,42136.0,42133.0,0.01627199]
[1644199214582,0.04344268,42136.0,42134.0,0.01034203]
[1644199214782,0.04344268,42136.0,42134.0,0.02068414]
[1644199215183,0.0430471,42136.0,42135.0,0.00918615]
[1644199215581,0.00013294,42136.0,42135.0,0.00918615]
[1644199215783,0.00013294,42136.0,42135.0,0.12784515]
[1644199219334,0.00013294,42136.0,42135.0,0.12792813]
[1644199219932,0.00013294,42136.0,42135.0,0.13827016]
[1644199220334,0.00013294,42136.0,42135.0,0.14861227]
[1644199222179,0.00013294,42136.0,42135.0,0.19611227]
[1644199222380,0.00013294,42136.0,42135.0,0.24611227]
[1644199222580,0.01,42149.0,42147.0,0.059311]
[1644199222781,0.01,42149.0,42148.0,0.0475]
[1644199222981,0.01,42149.0,42148.0,0.304009]
[1644199223179,0.01,42149.0,42148.0,0.31319515]
[1644199223479,0.01,42149.0,42148.0,0.41319515]
[1644199223879,0.01,42149.0,42148.0,0.15668615]
[1644199224280,0.01,42149.0,42148.0,0.05668615]
[1644199224681,0.05291416,42149.0,42148.0,0.05668615]
[1644199225085,0.00139113,42151.0,42149.0,1.0]
[1644199225285,0.442,42165.0,42152.0,1.0]
[1644199225286,0.003,42159.0,42152.0,1.0]
[1644199225485,0.001,42166.0,42160.0,0.06977163]
[1644199225839,0.001,42166.0,42163.0,0.00708584]
[1644199226030,0.001,42166.0,42164.0,0.26288198]
[1644199226632,0.001,42166.0,42165.0,0.32342393]
[1644199226830,0.001,42166.0,42165.0,0.47092393]
[1644199227232,0.535,42179.0,42174.0,0.08625034]
[1644199227430,0.535,42179.0,42174.0,0.0475]
[1644199227632,0.28955848,42175.0,42174.0,0.0475]
[1644199227836,0.61965148,42175.0,42174.0,0.0475]
[1644199228229,0.38955848,42175.0,42174.0,0.0475]
[1644199228631,0.38955848,42175.0,42174.0,0.05668615]
[1644199229230,0.59594662,42175.0,42174.0,0.00918615]
[1644199229432,0.71453352,42175.0,42174.0,0.00918615]
[1644199229690,1.04462652,42175.0,42174.0,0.00918615]
[1644199230483,1.04462652,42175.0,42174.0,0.01952818]
[1644199230882,1.04462652,42175.0,42174.0,0.02987029]
[1644199231282,0.99462652,42175.0,42174.0,0.02987029]
[1644199231584,1.04462652,42175.0,42174.0,0.02987029]
[1644199232182,0.26418476,42167.0,42166.0,0.059291]
[1644199232385,0.31418476,42167.0,42163.0,0.11858]
[1644199232586,0.31418476,42167.0,42156.0,0.25276412]
[1644199232587,0.05,42164.0,42156.0,0.25276412]
[1644199232783,0.88427325,42167.0,42156.0,0.24776412]
[1644199232784,0.05,42157.0,42156.0,0.24776412]
[1644199233435,0.05,42157.0,42151.0,0.05]
[1644199234033,0.22129721,42159.0,42151.0,0.05]
[1644199234234,0.05,42154.0,42151.0,0.05]
[1644199234534,0.22129721,42159.0,42151.0,0.05]
[1644199234535,0.05,42159.0,42151.0,0.05]
[1644199234734,0.0180336,42162.0,42156.0,0.0731068]
[1644199234735,0.00039039,42157.0,42156.0,0.0731068]
[1644199235134,0.00039039,42157.0,42151.0,0.05]
[1644199235333,0.00039039,42157.0,42153.0,0.0475]
[1644199235535,0.00039039,42157.0,42154.0,0.23708588]
[1644199235734,0.23485823,42160.0,42154.0,0.23708588]
[1644199235735,0.23485823,42160.0,42154.0,0.23208588]
[1644199235935,0.00039039,42157.0,42154.0,0.23208588]
[1644199236136,0.00039039,42157.0,42156.0,0.13836383]
[1644199236341,0.00039039,42157.0,42156.0,0.13336383]
[1644199236738,0.00039039,42157.0,42156.0,0.054299]
[1644199236938,0.25614786,42161.0,42156.0,0.054299]
[1644199237181,0.00039039,42159.0,42158.0,0.11859]
[1644199237380,0.00039039,42159.0,42154.0,0.33208588]
[1644199237683,0.05,42155.0,42153.0,0.1]
[1644199237879,0.05,42155.0,42152.0,0.118581]
[1644199238082,0.05,42155.0,42153.0,0.118607]
[1644199239182,0.20329854,42154.0,42153.0,0.118607]
[1644199240185,0.05,42155.0,42153.0,0.118607]
[1644199241227,0.26139372,42154.0,42153.0,0.118607]
[1644199242028,0.05,42155.0,42153.0,0.118607]
[1644199244028,0.00013361,42154.0,42153.0,0.118607]
[1644199247285,0.05013361,42154.0,42153.0,0.118607]
[1644199249733,0.00013361,42154.0,42153.0,0.118607]
[1644199252707,0.00013361,42154.0,42153.0,0.543898]
[1644199252906,0.00039036,42156.0,42154.0,1.06700737]
[1644199253205,0.00039036,42156.0,42155.0,0.43230224]
[1644199253408,0.01815786,42160.0,42156.0,1.24310176]
[1644199253604,0.01815786,42160.0,42157.0,0.16606]
[1644199253806,0.0409579,42167.0,42157.0,0.16606]
[1644199253807,0.0409579,42167.0,42166.0,0.07707428]
[1644199254005,0.0409579,42167.0,42166.0,0.3424889]
[1644199254306,0.0409579,42167.0,42166.0,0.4424889]
[1644199254707,0.05974058,42173.0,42166.0,0.4424889]
[1644199255210,0.05974058,42173.0,42166.0,0.5992689]
[1644199255710,0.05,42174.0,42166.0,0.5492689]
[1644199255946,0.05927947,42181.0,42166.0,0.5492689]
[1644199255947,0.20297503,42196.0,42173.0,0.05]
[1644199256145,0.001,42197.0,42191.0,0.05]
[1644199256350,0.001,42197.0,42195.0,0.05]
[1644199256351,0.00057193,42196.0,42195.0,0.05]
[1644199256540,0.00057193,42196.0,42195.0,0.42833682]
[1644199256737,0.32667503,42217.0,42195.0,0.42833682]
[1644199256738,0.20297503,42216.0,42196.0,0.9974314]
[1644199256941,0.1237,42217.0,42216.0,0.08903291]
[1644199257141,0.20297503,42227.0,42212.0,0.0475]
[1644199257339,0.05,42228.0,42212.0,0.0475]
[1644199257340,0.001,42221.0,42212.0,0.0475]
[1644199257539,0.05,42219.0,42217.0,0.05922]
[1644199257742,0.21912924,42220.0,42218.0,0.0475]
[1644199258444,0.59661629,42219.0,42218.0,0.0475]
[1644199258641,0.64661629,42219.0,42218.0,0.0475]
[1644199258840,0.25665673,42211.0,42209.0,0.106735]
[1644199259040,1.0,42218.0,42209.0,0.106735]
[1644199259041,0.05,42216.0,42209.0,0.106735]
[1644199259239,0.26980147,42210.0,42209.0,0.0475]
[1644199259440,0.26980147,42210.0,42203.0,0.0475]
[1644199259441,0.64989447,42210.0,42203.0,0.0475]
[1644199259688,0.36909921,42204.0,42203.0,0.0475]
[1644199259883,0.36409921,42204.0,42203.0,0.0475]
[1644199260085,0.62617047,42204.0,42203.0,0.0475]
[1644199260688,0.57617047,42204.0,42203.0,0.0475]
[1644199260886,0.67617047,42204.0,42203.0,0.0475]
[1644199261886,0.67617047,42204.0,42203.0,0.0425]
[1644199262487,0.05,42203.0,42199.0,0.06350602]
[1644199262886,0.05,42203.0,42196.0,0.31648066]
[1644199263533,0.05,42199.0,42198.0,0.059245]
[1644199265135,0.23034082,42197.0,42196.0,0.1]
[1644199265336,0.23034082,42197.0,42193.0,0.05]
[1644199265535,0.00047544,42201.0,42193.0,0.05]
[1644199265735,0.05,42203.0,42193.0,0.05]
[1644199265736,0.05,42200.0,42193.0,0.05]
[1644199265936,0.00047543,42198.0,42193.0,0.05]
[1644199266138,0.00047543,42198.0,42194.0,0.27439793]
[1644199266536,0.05,42197.0,42194.0,0.27439793]
[1644199266737,0.00047543,42198.0,42193.0,0.15]
[1644199266937,0.35849288,42200.0,42193.0,0.15]
[1644199267186,0.00047544,42198.0,42193.0,0.15]
[1644199267386,0.00047544,42198.0,42195.0,0.059249]
[1644199268087,0.35849288,42200.0,42195.0,0.059249]
[1644199268287,0.00047544,42199.0,42195.0,0.059249]
[1644199269287,0.35849288,42200.0,42195.0,0.059249]
[1644199269487,0.00047544,42199.0,42195.0,0.059249]
[1644199269687,0.00047544,42199.0,42198.0,0.00019563]
[1644199269688,0.00060665,42199.0,42198.0,0.00019563]
[1644199270489,0.00013121,42199.0,42198.0,0.00019563]
[1644199271737,0.118491,42229.0,42198.0,0.00019563]
[1644199271738,0.18878398,42209.0,42198.0,0.00019563]
[1644199271934,0.00014326,42201.0,42199.0,0.06984049]
[1644199272136,0.0007162,42209.0,42201.0,1.00014]
[1644199272342,0.00057294,42209.0,42205.0,0.05]
[1644199272538,0.001,42216.0,42214.0,0.35919241]
[1644199272734,0.001,42216.0,42215.0,0.43725499]
[1644199273135,0.002,42230.0,42219.0,0.059192]
[1644199273338,0.002,42230.0,42223.0,0.17757]
[1644199273534,0.002,42230.0,42224.0,0.0475]
[1644199274036,0.05,42225.0,42224.0,0.0475]
[1644199274240,0.05,42225.0,42224.0,0.106702]
[1644199274241,0.32200807,42225.0,42224.0,0.106702]
[1644199274437,0.05,42225.0,42224.0,0.0475]
[1644199274687,0.31389948,42225.0,42224.0,0.0475]
[1644199274886,0.58255017,42225.0,42224.0,0.0475]
[1644199275085,0.58255017,42225.0,42216.0,0.1]
[1644199275086,0.58255017,42225.0,42220.0,0.08994602]
[1644199275286,0.34181513,42221.0,42216.0,0.1]
[1644199275686,0.34181513,42221.0,42213.0,0.49174982]
[1644199275986,0.20508468,42216.0,42213.0,0.265931]
[1644199276185,0.05,42215.0,42213.0,0.265931]
[1644199276385,0.05,42215.0,42214.0,0.06597]
[1644199276790,0.2018834,42214.0,42213.0,0.265931]
[1644199276988,0.2018834,42214.0,42212.0,0.02175393]
[1644199276989,0.47644418,42214.0,42212.0,0.02175393]
[1644199277189,0.31079545,42213.0,42212.0,0.02175393]
[1644199277990,0.00047365,42215.0,42212.0,0.02175393]
[1644199278190,0.00047365,42215.0,42213.0,0.07980426]
[1644199278441,0.00047365,42215.0,42211.0,0.118439]
[1644199278644,0.05047365,42215.0,42211.0,0.118439]
[1644199278840,0.05,42215.0,42211.0,0.118439]
[1644199279240,0.00014272,42215.0,42211.0,0.118439]
[1644199279445,0.05,42212.0,42211.0,0.19472033]
[1644199279641,0.00014272,42215.0,42211.0,0.19472033]
[1644199279843,0.00014272,42215.0,42211.0,0.25393533]
[1644199280043,0.05,42223.0,42211.0,0.25393533]
[1644199280242,0.21768692,42221.0,42218.0,0.08516917]
[1644199280442,0.05,42223.0,42218.0,0.08516917]
[1644199280443,0.00189431,42222.0,42218.0,0.08516917]
[1644199280642,0.00189431,42222.0,42218.0,0.118416]
[1644199280845,0.05,42220.0,42218.0,0.118416]
[1644199281044,0.25461508,42219.0,42214.0,0.05]
[1644199281243,0.05,42218.0,42214.0,0.05]
[1644199281443,0.31488411,42218.0,42214.0,0.05]
[1644199281643,0.05,42215.0,42214.0,0.05]
[1644199281947,0.05,42218.0,42214.0,0.168432]
[1644199282187,0.00047365,42221.0,42214.0,0.168432]
[1644199282188,0.05,42215.0,42214.0,0.168432]
[1644199282787,0.00047365,42217.0,42214.0,0.168432]
[1644199282987,0.05047365,42217.0,42214.0,0.168432]
[1644199283389,0.00047365,42217.0,42214.0,0.168432]
[1644199283787,0.62530841,42224.0,42214.0,0.168432]
[1644199283788,0.05,42222.0,42214.0,0.168432]
[1644199283989,0.00047365,42218.0,42214.0,0.168432]
[1644199284389,0.00047365,42218.0,42215.0,0.059215]
[1644199284694,0.05047365,42218.0,42215.0,0.059215]
[1644199284891,0.05,42218.0,42215.0,0.059215]
[1644199285290,0.044,42218.0,42215.0,0.059215]
[1644199286240,0.20302569,42217.0,42215.0,0.059215]
[1644199286440,0.044,42218.0,42215.0,0.059215]
[1644199286842,0.044,42218.0,42214.0,0.168432]
[1644199287039,0.044,42215.0,42214.0,0.168432]
[1644199287242,0.00047365,42219.0,42214.0,0.168432]
[1644199287440,0.25840132,42220.0,42212.0,0.36636643]
[1644199287641,0.25840132,42220.0,42212.0,0.17784806]
[1644199287642,0.00047365,42217.0,42212.0,0.17784806]
[1644199287840,0.00047365,42217.0,42212.0,0.27784806]
[1644199288442,0.044,42213.0,42212.0,0.27784806]
[1644199288841,0.044,42213.0,42212.0,0.17784806]
[1644199289245,0.28820932,42213.0,42212.0,0.17784806]
[1644199289446,0.28820932,42213.0,42212.0,0.11863306]
[1644199289685,0.044,42213.0,42212.0,0.11863306]
[1644199290489,0.00047365,42215.0,42212.0,0.11863306]
[1644199290888,0.20573725,42216.0,42212.0,0.11863306]
[1644199291288,0.044,42213.0,42212.0,0.118438]
[1644199291691,0.2062109,42216.0,42212.0,0.118438]
[1644199292089,0.04413121,42217.0,42212.0,0.118438]
[1644199292290,0.044,42214.0,42212.0,0.118438]
[1644199293090,0.51952001,42213.0,42212.0,0.118438]
[1644199293535,0.52061186,42213.0,42212.0,0.118438]
[1644199293733,0.52029561,42213.0,42212.0,0.118438]
[1644199294534,0.52029561,42213.0,42211.0,0.00013783]
[1644199294734,0.27081818,42212.0,42211.0,0.00013783]
[1644199295334,0.27050518,42212.0,42211.0,0.00013783]
[1644199295535,0.60059818,42212.0,42211.0,0.00013783]
[1644199295934,0.60059818,42212.0,42209.0,0.00289258]
[1644199295935,0.05,42211.0,42209.0,0.00289258]
[1644199296134,0.98435772,42210.0,42209.0,0.00289258]
[1644199296334,1.24379,42210.0,42209.0,0.00289258]
[1644199298691,1.24379,42210.0,42206.0,0.00144906]
[1644199298692,1.39379,42210.0,42206.0,0.00144906]
[1644199298892,1.39379,42210.0,42203.0,0.03692161]
[1644199298895,0.24518112,42206.0,42203.0,0.03692161]
[1644199299094,0.044,42204.0,42203.0,0.03692161]
[1644199299292,0.69083171,42204.0,42203.0,0.03402903]
[1644199299791,0.69083171,42204.0,42203.0,0.03396494]
[1644199299992,0.36073871,42204.0,42203.0,0.03396494]
[1644199300394,0.27151721,42207.0,42203.0,0.01321165]
[1644199300595,0.31551721,42207.0,42203.0,0.01321165]
[1644199300847,0.31551721,42207.0,42203.0,0.01314756]
[1644199301036,0.044,42204.0,42203.0,0.01314756]
[1644199301236,0.044,42204.0,42203.0,0.01025498]
[1644199302841,0.30117768,42204.0,42203.0,0.01025498]
[1644199303038,0.25717768,42204.0,42203.0,0.01025498]
[1644199303239,0.35070768,42204.0,42203.0,0.01025498]
[1644199303837,0.35070768,42204.0,42203.0,0.00880592]
[1644199303838,0.68080068,42204.0,42203.0,0.00880592]
[1644199304038,0.68080068,42204.0,42203.0,0.00887001]
[1644199305085,0.68080068,42204.0,42203.0,0.00597743]
[1644199305888,0.68080068,42204.0,42203.0,0.00308485]
[1644199306088,0.68080068,42204.0,42203.0,0.00314894]
[1644199306289,0.68093887,42204.0,42203.0,0.00321602]
[1644199307088,0.68093887,42204.0,42203.0,0.00038753]
[1644199308093,0.68093887,42204.0,42203.0,0.00045162]
[1644199309338,0.78093887,42204.0,42203.0,0.00045162]
[1644199309638,0.78093887,42204.0,42203.0,0.00340829]
[1644199310641,0.78093887,42204.0,42203.0,0.00492144]
[1644199310838,0.78093887,42204.0,42203.0,0.00636496]
[1644199311239,0.68093887,42204.0,42203.0,0.00636496]
[1644199311444,0.37376119,42204.0,42203.0,0.00636496]
[1644199311642,0.37376119,42204.0,42203.0,0.00636197]
[1644199311643,0.00013819,42204.0,42203.0,0.00636197]
[1644199311839,0.00013819,42204.0,42203.0,0.00925455]
[1644199312889,0.00013819,42204.0,42203.0,0.01214713]
[1644199313890,0.00013819,42204.0,42203.0,0.01503971]
[1644199314589,0.00013819,42204.0,42203.0,0.10392002]
[1644199314791,0.00013819,42204.0,42203.0,0.49513923]
[1644199314990,0.00013819,42204.0,42203.0,0.4980959]
[1644199315190,0.00013819,42204.0,42203.0,0.59803181]
[1644199316037,0.00013819,42204.0,42203.0,0.51706502]
[1644199316338,0.00013819,42204.0,42203.0,0.17479487]
[1644199316741,0.00013819,42204.0,42203.0,0.07479487]
[1644199316942,0.26480875,42210.0,42203.0,0.07479487]
[1644199317141,0.00013098,42210.0,42209.0,0.059227]
[1644199318142,0.00013098,42210.0,42209.0,0.06067606]
[1644199319242,0.00013098,42210.0,42209.0,0.06363273]
[1644199320287,0.00013098,42210.0,42209.0,0.06514034]
[1644199320786,0.00013098,42210.0,42209.0,0.0665894]
[1644199321189,0.00013098,42210.0,42209.0,0.06665349]
[1644199321889,0.00013098,42210.0,42209.0,0.06954607]
[1644199322087,0.00051758,42212.0,42209.0,0.06954607]
[1644199322288,0.00013137,42212.0,42209.0,0.06961016]
[1644199322488,0.00051758,42212.0,42209.0,0.06961016]
[1644199322889,0.00051758,42212.0,42209.0,0.07250274]
[1644199323540,0.00013137,42212.0,42209.0,0.07250274]
[1644199323935,0.00013137,42212.0,42209.0,0.07401035]
[1644199325038,0.00013137,42212.0,42209.0,0.07690293]
[1644199325939,6.728e-05,42212.0,42209.0,0.07979551]
[1644199326144,6.728e-05,42212.0,42209.0,0.07835199]
[1644199327089,6.728e-05,42212.0,42209.0,0.07979551]
[1644199327491,0.00013144,42212.0,42211.0,0.00647]
[1644199328093,0.00013144,42212.0,42211.0,0.05686258]
[1644199328392,0.00013144,42212.0,42211.0,0.38574515]
[1644199328592,0.00038686,42214.0,42212.0,1.0]
[1644199328795,0.00038686,42214.0,42213.0,0.42062379]
[1644199329192,0.00038686,42214.0,42213.0,0.52351637]
[1644199329394,0.0055,42219.0,42214.0,0.08332689]
[1644199329592,0.13460028,42220.0,42214.0,0.08332689]
[1644199329593,0.13460028,42220.0,42218.0,0.00647]
[1644199329792,0.13460028,42220.0,42219.0,0.0475]
[1644199329991,0.00154719,42222.0,42219.0,0.0475]
[1644199330194,0.00154719,42222.0,42221.0,0.00647]
[1644199330392,0.00154719,42222.0,42221.0,0.05397]
[1644199330596,0.45631834,42230.0,42221.0,0.05397]
[1644199330844,0.45631834,42230.0,42226.0,0.065671]
[1644199331038,0.45631834,42230.0,42221.0,0.05039258]
[1644199331039,0.20204432,42226.0,42221.0,0.05039258]
[1644199331238,0.04353,42222.0,42221.0,0.05686258]
[1644199331441,0.04353,42222.0,42221.0,0.05039258]
[1644199332137,0.25432649,42222.0,42221.0,0.0518361]
[1644199332339,0.25432649,42222.0,42221.0,0.0043361]
[1644199332536,0.25287743,42222.0,42221.0,0.0043361]
[1644199332739,0.60058681,42222.0,42221.0,0.0043361]
[1644199332938,0.93067981,42222.0,42221.0,0.00577962]
[1644199333537,0.60058681,42222.0,42221.0,0.00577962]
[1644199333738,0.34640743,42222.0,42221.0,0.00577962]
[1644199334591,0.34496391,42222.0,42221.0,0.00577962]
[1644199334991,0.29640743,42222.0,42221.0,0.00577962]
[1644199336191,0.34640743,42222.0,42221.0,0.00577962]
[1644199339047,0.93590609,42222.0,42221.0,0.00577962]
[1644199339647,0.67650043,42222.0,42221.0,0.00577962]
[1644199340452,0.423623,42222.0,42221.0,0.00577962]
[1644199340651,0.00038613,42224.0,42221.0,0.00577962]
[1644199340855,0.00038613,42224.0,42223.0,0.00647]
[1644199341450,0.07104137,42229.0,42223.0,0.00647]
[1644199341649,0.07104137,42229.0,42228.0,0.00647]
[1644199341852,0.07104137,42229.0,42221.0,0.00577962]
[1644199342090,0.04353,42226.0,42221.0,0.00577962]
[1644199342293,0.04353,42226.0,42223.0,0.02138399]
[1644199342893,0.00011938,42227.0,42223.0,0.02138399]
[1644199343092,0.00011938,42227.0,42224.0,0.059205]
[1644199343492,0.00011938,42227.0,42223.0,0.02138399]
[1644199343894,0.07104137,42229.0,42223.0,0.02138399]
[1644199344097,0.00011938,42227.0,42225.0,0.00647]
[1644199344295,0.00011938,42227.0,42224.0,0.059206]
[1644199344499,0.00011938,42227.0,42225.0,0.00647]
[1644199344995,0.12104137,42229.0,42225.0,0.00647]
[1644199345398,0.12104137,42229.0,42224.0,0.059206]
[1644199345851,0.12104137,42229.0,42222.0,0.118414]
[1644199346041,0.04353,42228.0,42222.0,0.118414]
[1644199346439,0.04394847,42228.0,42222.0,0.118414]
[1644199346640,0.23719199,42226.0,42222.0,0.118414]
[1644199346840,0.04394847,42228.0,42222.0,0.118414]
[1644199347043,0.04394847,42228.0,42224.0,0.00647]
[1644199347240,0.04394847,42228.0,42225.0,0.059209]
[1644199347441,0.04353,42228.0,42225.0,0.059209]
[1644199347642,0.04394847,42228.0,42225.0,0.059209]
[1644199348243,0.00012993,42226.0,42222.0,0.118414]
[1644199348443,0.04353,42223.0,42221.0,0.02587985]
[1644199348644,0.04346591,42223.0,42221.0,0.02587985]
[1644199348843,0.04346591,42224.0,42221.0,0.02587985]
[1644199349343,0.31152901,42223.0,42221.0,0.02587985]
[1644199349604,0.36152901,42223.0,42221.0,0.02587985]
[1644199349802,0.0005484,42226.0,42222.0,0.06575009]
[1644199350002,0.00012993,42226.0,42222.0,0.06575009]
[1644199350201,0.00012993,42226.0,42223.0,0.00653409]
[1644199350202,0.00038154,42224.0,42223.0,0.00653409]
[1644199350601,0.03897738,42227.0,42223.0,0.01102262]
[1644199350804,0.26909109,42228.0,42223.0,0.01102262]
[1644199351006,0.30806847,42228.0,42223.0,0.01102262]
[1644199351207,0.03897738,42228.0,42224.0,0.118417]
[1644199351406,0.03897738,42228.0,42227.0,0.01102262]
[1644199351605,0.03897738,42228.0,42227.0,0.07022462]
[1644199351805,0.07104137,42229.0,42227.0,0.07022462]
[1644199352006,0.03897738,42228.0,42227.0,0.059202]
[1644199352208,0.07104137,42229.0,42227.0,0.059202]
[1644199352405,0.07104137,42229.0,42227.0,0.07022462]
[1644199352406,0.30371451,42228.0,42227.0,0.07022462]
[1644199352607,0.30371451,42228.0,42227.0,0.059202]
[1644199353006,0.35371451,42228.0,42224.0,0.01102262]
[1644199353206,0.03897738,42226.0,42222.0,0.01929307]
[1644199353443,0.03897738,42223.0,42222.0,0.01929307]
[1644199353643,0.03765818,42226.0,42222.0,0.03163489]
[1644199353847,0.00047444,42226.0,42222.0,0.03163489]
[1644199354442,0.00047444,42226.0,42222.0,0.01929307]
[1644199354642,0.31473713,42228.0,42223.0,0.01234182]
[1644199354846,0.00047444,42226.0,42223.0,0.01234182]
[1644199355741,0.0366891,42227.0,42223.0,0.0133109]
[1644199356144,0.31473713,42228.0,42221.0,0.12419962]
[1644199356341,0.0366891,42227.0,42223.0,0.0133109]
[1644199357687,0.0366891,42227.0,42221.0,0.00577962]
[1644199357890,0.0366891,42222.0,42221.0,0.00577962]
[1644199358489,0.3667821,42222.0,42221.0,0.00577962]
[1644199358687,0.4667821,42222.0,42221.0,0.00577962]
[1644199358891,0.78878878,42222.0,42221.0,0.00577962]
[1644199359488,0.78878878,42222.0,42221.0,0.0043361]
[1644199359690,1.0,42221.0,42219.0,0.00055973]
[1644199359892,0.377593,42220.0,42219.0,0.00055973]
[1644199360092,0.427593,42220.0,42219.0,0.00055973]
[1644199360287,0.627593,42220.0,42219.0,0.00055973]
[1644199360487,0.91450147,42220.0,42219.0,0.00055973]
[1644199360687,0.91450147,42220.0,42215.0,0.00577962]
[1644199360688,0.92374155,42220.0,42215.0,0.00577962]
[1644199360943,0.92374155,42220.0,42217.0,0.00055975]
[1644199360944,0.56856492,42218.0,42217.0,0.00055975]
[1644199361143,0.02135093,42210.0,42209.0,0.0280357]
[1644199361344,0.02135093,42210.0,42209.0,0.0147248]
[1644199361940,0.05804003,42210.0,42209.0,0.0147248]
[1644199362543,0.02135093,42210.0,42209.0,0.10212335]
[1644199363945,0.02135093,42210.0,42209.0,0.48902128]
[1644199364145,0.07105541,42221.0,42209.0,0.48902128]
[1644199364146,0.07105541,42221.0,42220.0,0.08556594]
[1644199364347,0.07105541,42221.0,42220.0,0.09887684]
[1644199365190,0.07105541,42221.0,42220.0,0.0133109]
[1644199366492,0.07105541,42221.0,42220.0,0.0725209]
[1644199367895,0.12105541,42221.0,42220.0,0.0725209]
[1644199368356,0.12105541,42221.0,42220.0,0.0133109]
[1644199368644,0.12105541,42221.0,42219.0,0.177629]
[1644199368843,0.12105541,42221.0,42220.0,0.0133109]
[1644199369446,0.07105541,42221.0,42220.0,0.0133109]
[1644199369646,0.07105541,42221.0,42220.0,0.37882148]
[1644199369846,0.07105541,42221.0,42220.0,0.47882148]
[1644199370548,0.07099132,42221.0,42220.0,0.70541537]
[1644199371445,0.07099132,42221.0,42220.0,0.78704655]